bitfinex/quotes_BTCUSD_20260126
["timestamp","ask_amount","ask_price","bid_price","bid_amount"]
[1769419518314,0.0684736,87805.0,87792.0,0.02377495]
[1769419518315,0.01138926,87802.0,87792.0,0.02377495]
[1769419518700,0.001,87803.0,87792.0,0.02377495]
[1769419518861,0.0684736,87805.0,87792.0,0.02377495]
[1769419519694,0.05694531,87804.0,87792.0,0.02377495]
[1769419520011,0.00014005,87805.0,87792.0,0.02377495]
[1769419521136,100.0,87989.0,87807.0,0.02377495]
[1769419521137,0.523655,87824.0,87807.0,0.02377495]
[1769419521294,0.578104,87824.0,87807.0,0.02322215]
[1769419521497,0.00899418,87825.0,87807.0,0.02322215]
[1769419521498,0.256864,87823.0,87807.0,0.02322215]
[1769419521704,0.254551,87824.0,87807.0,0.02322215]
[1769419521924,0.01138679,87821.0,87807.0,0.02322215]
[1769419522290,0.17401,87821.0,87807.0,0.02322215]
[1769419522841,0.06592559,87825.0,87807.0,0.02322215]
[1769419522842,0.00899418,87825.0,87807.0,0.02322215]
[1769419523002,0.00899418,87825.0,87808.0,0.02377495]
[1769419523203,0.0002599,87827.0,87808.0,0.02377495]
[1769419524364,0.05693324,87823.0,87808.0,0.02377495]
[1769419524508,0.01138666,87822.0,87808.0,0.02377495]
[1769419525148,0.01138653,87823.0,87808.0,0.02377495]
[1769419526016,0.0113864,87824.0,87808.0,0.02377495]
[1769419526228,0.0113864,87824.0,87809.0,0.72065686]
[1769419526438,0.0113864,87824.0,87809.0,0.72062531]
[1769419527592,0.01138614,87826.0,87810.0,0.02377495]
[1769419528779,0.01138627,87825.0,87810.0,0.02377495]
[1769419528910,0.01138666,87822.0,87810.0,0.02377495]
[1769419529315,0.01138653,87823.0,87810.0,0.02377495]
[1769419529518,0.06831869,87824.0,87810.0,0.02377495]
[1769419529927,0.0113864,87824.0,87810.0,0.02377495]
[1769419530127,0.01138653,87823.0,87810.0,0.02377495]
[1769419530329,0.01138666,87822.0,87810.0,0.02377495]
[1769419530527,0.01138653,87823.0,87810.0,0.02377495]
[1769419530861,0.01168923,87823.0,87810.0,0.02377495]
[1769419532603,0.01168923,87823.0,87809.0,0.00014005]
[1769419532757,0.06832203,87820.0,87809.0,0.00014005]
[1769419532935,0.01138705,87819.0,87809.0,0.00014005]
[1769419533275,0.01138692,87820.0,87809.0,0.00014005]
[1769419533481,0.01138705,87819.0,87809.0,0.00014005]
[1769419533760,0.06832193,87820.0,87809.0,0.00014005]
[1769419534040,0.0003027,87823.0,87809.0,0.00014005]
[1769419534794,0.0003027,87823.0,87811.0,0.02470293]
[1769419535210,0.01138602,87827.0,87809.0,0.00014005]
[1769419535211,0.02344754,87827.0,87809.0,0.00014005]
[1769419535561,0.01138614,87826.0,87809.0,0.00014005]
[1769419535694,0.01138627,87825.0,87809.0,0.00014005]
[1769419535892,0.06831699,87826.0,87809.0,0.00014005]
[1769419536093,0.01138614,87826.0,87809.0,0.00014005]
[1769419536893,0.001,87823.0,87809.0,0.00014005]
[1769419537625,0.01536812,87827.0,87809.0,0.00014005]
[1769419538017,0.05693338,87822.0,87809.0,0.00014005]
[1769419538417,0.01138679,87821.0,87809.0,0.00014005]
[1769419539855,0.05693338,87822.0,87809.0,0.00014005]
[1769419540575,0.01536812,87827.0,87809.0,0.00014005]
[1769419540723,0.02207491,87831.0,87809.0,0.00014005]
[1769419540929,0.02207491,87831.0,87809.0,0.02484298]
[1769419543502,0.02207491,87831.0,87751.0,0.05662868]
[1769419543503,0.01,87809.0,87794.0,0.02470293]
[1769419543741,0.02230551,87808.0,87794.0,0.02470293]
[1769419543908,0.02344754,87807.0,87787.0,0.02470293]
[1769419544313,0.02344754,87807.0,87788.0,0.02470293]
[1769419544520,0.05694482,87805.0,87789.0,0.72369764]
[1769419544721,0.05694482,87805.0,87789.0,0.69899471]
[1769419544942,0.011389,87804.0,87790.0,0.72369764]
[1769419545302,0.06833431,87804.0,87790.0,0.72369764]
[1769419545503,0.01138913,87803.0,87790.0,0.72369764]
[1769419546390,0.01138913,87803.0,87790.0,0.02470293]
[1769419546595,0.01138913,87803.0,87791.0,0.69899471]
[1769419547256,0.02230551,87805.0,87791.0,0.69899471]
[1769419547841,0.02230551,87806.0,87791.0,0.69899471]
[1769419548710,0.00014018,87809.0,87793.0,0.69899471]
[1769419548907,0.02244569,87809.0,87797.0,0.69899471]
[1769419549105,0.00014018,87809.0,87797.0,0.72369764]
[1769419550749,0.09063349,87812.0,87797.0,0.72369764]
[1769419550953,0.01138809,87811.0,87797.0,0.72383782]
[1769419551319,0.02230551,87812.0,87797.0,0.048471]
[1769419551529,0.01,87797.0,87786.0,0.0002414]
[1769419551935,0.02230551,87799.0,87786.0,0.0002414]
[1769419552134,0.03383531,87799.0,87786.0,0.0002414]
[1769419552452,0.02244566,87799.0,87786.0,0.0002414]
[1769419552813,0.03383531,87799.0,87786.0,0.0002414]
[1769419553361,0.02244566,87799.0,87786.0,0.0002414]
[1769419553901,0.02344754,87809.0,87786.0,0.0002414]
[1769419554046,0.02344754,87808.0,87786.0,0.00038155]
[1769419554252,0.01138991,87797.0,87786.0,0.00038155]
[1769419554478,0.01139004,87796.0,87786.0,0.00038155]
[1769419554667,0.01138991,87797.0,87786.0,0.00038155]
[1769419554852,0.01139004,87796.0,87786.0,0.00038155]
[1769419556605,0.01190447,87802.0,87786.0,0.00038155]
[1769419557522,0.01139042,87793.0,87786.0,0.00038155]
[1769419557746,0.01139068,87791.0,87786.0,0.00038155]
[1769419557963,0.01139068,87791.0,87779.0,0.69899471]
[1769419557964,0.01139068,87791.0,87773.0,0.0456]
[1769419557965,0.01139185,87782.0,87771.0,0.69899471]
[1769419558166,0.01139185,87782.0,87772.0,4.161e-05]
[1769419558361,0.06835159,87782.0,87772.0,4.161e-05]
[1769419558633,0.01139198,87781.0,87772.0,4.161e-05]
[1769419558880,0.01139211,87780.0,87772.0,4.161e-05]
[1769419559422,0.06835216,87781.0,87772.0,4.161e-05]
[1769419559937,0.01139185,87782.0,87772.0,4.161e-05]
[1769419560164,0.06835169,87782.0,87772.0,4.161e-05]
[1769419560367,0.01139198,87781.0,87772.0,4.161e-05]
[1769419560772,0.05695868,87783.0,87772.0,4.161e-05]
[1769419560934,0.01139185,87782.0,87772.0,4.161e-05]
[1769419561129,0.01139146,87785.0,87772.0,0.02474454]
[1769419561386,0.0113912,87787.0,87772.0,0.02474454]
[1769419561587,0.06834777,87787.0,87773.0,0.69899471]
[1769419561790,0.06834777,87787.0,87775.0,0.02470293]
[1769419562102,0.01139133,87786.0,87775.0,0.69899471]
[1769419562235,0.05695865,87783.0,87776.0,0.02470293]
[1769419562440,0.01139133,87786.0,87776.0,0.02470293]
[1769419562441,0.05695738,87785.0,87776.0,0.02470293]
[1769419562659,0.01139159,87784.0,87776.0,0.02470293]
[1769419562989,0.01139172,87783.0,87776.0,0.02470293]
[1769419563556,0.01139055,87792.0,87776.0,0.02470293]
[1769419563754,0.01139068,87791.0,87776.0,0.02470293]
[1769419563964,0.01139081,87790.0,87776.0,0.02470293]
[1769419564383,0.01139042,87793.0,87776.0,0.02470293]
[1769419564604,0.01139055,87792.0,87778.0,0.69899471]
[1769419564806,0.01139055,87792.0,87779.0,0.02363468]
[1769419565010,0.01139068,87791.0,87779.0,0.02363468]
[1769419565214,0.01139055,87792.0,87779.0,0.02363468]
[1769419565774,0.01139055,87792.0,87763.0,0.06836561]
[1769419565775,0.21774008,87778.0,87751.0,0.59453176]
[1769419566059,0.05125827,87791.0,87751.0,0.59453176]
[1769419566060,0.01139393,87766.0,87754.0,0.02363468]
[1769419566257,0.01139445,87762.0,87751.0,0.00046693]
[1769419566478,0.01139432,87763.0,87751.0,0.00046693]
[1769419566853,0.26420208,87764.0,87751.0,0.00046693]
[1769419567539,0.27559627,87764.0,87751.0,0.00046693]
[1769419567956,0.01139432,87763.0,87751.0,0.00046693]
[1769419568121,0.26420208,87764.0,87751.0,0.00046693]
[1769419568323,0.27559627,87764.0,87751.0,0.00046693]
[1769419568544,0.01139432,87763.0,87751.0,0.00046693]
[1769419568954,0.27559627,87764.0,87751.0,0.00046693]
[1769419569121,0.01139432,87763.0,87751.0,0.00046693]
[1769419569331,0.0113938,87767.0,87751.0,0.00046693]
[1769419569696,0.0113938,87767.0,87751.0,0.02410161]
[1769419569697,0.01139406,87765.0,87751.0,0.02410161]
[1769419570140,0.01139419,87764.0,87751.0,0.02410161]
[1769419570338,0.06836451,87765.0,87751.0,0.02410161]
[1769419570339,0.01139406,87765.0,87751.0,0.02410161]
[1769419570800,0.01139393,87766.0,87751.0,0.02410161]
[1769419571169,0.26420208,87767.0,87751.0,0.02410161]
[1769419571356,0.01139393,87766.0,87751.0,0.02410161]
[1769419571764,0.26420208,87767.0,87751.0,0.02410161]
[1769419571963,0.27559588,87767.0,87751.0,0.02410161]
[1769419572164,0.26420208,87767.0,87751.0,0.02410161]
[1769419572513,0.32117152,87767.0,87751.0,0.02410161]
[1769419572898,0.01139419,87764.0,87751.0,0.02410161]
[1769419573101,0.01139406,87765.0,87751.0,0.02410161]
[1769419573311,0.0113938,87767.0,87751.0,0.02410161]
[1769419573880,0.29862467,87769.0,87751.0,0.02410161]
[1769419574085,0.056966,87772.0,87754.0,0.02363468]
[1769419574320,0.01139315,87772.0,87756.0,0.02363468]
[1769419574520,0.01139328,87771.0,87758.0,0.64146307]
[1769419574790,0.01139198,87781.0,87762.0,0.02363468]
[1769419575104,0.01139224,87779.0,87766.0,0.02363468]
[1769419575300,0.01139211,87780.0,87766.0,0.02363468]
[1769419575522,0.01139198,87781.0,87766.0,0.02363468]
[1769419575717,0.01139211,87780.0,87766.0,0.02363468]
[1769419576286,0.01139224,87779.0,87766.0,0.02363468]
[1769419576914,0.01139211,87780.0,87766.0,0.02363468]
[1769419577498,0.28723113,87779.0,87755.0,0.02363468]
[1769419577739,0.0456,87785.0,87751.0,0.04606693]
[1769419577740,0.26420208,87775.0,87751.0,0.04606693]
[1769419577973,0.02289702,87772.0,87751.0,0.04606693]
[1769419578175,0.01822676,87777.0,87751.0,0.00046693]
[1769419578176,0.27559692,87759.0,87751.0,0.00046693]
[1769419578302,0.01139497,87758.0,87751.0,0.00046693]
[1769419578500,0.3325716,87759.0,87751.0,0.00046693]
[1769419578739,0.01139523,87756.0,87751.0,0.00046693]
[1769419579002,0.26420208,87755.0,87751.0,0.00046693]
[1769419579168,0.01139484,87759.0,87751.0,0.00046693]
[1769419579372,0.001,87758.0,87751.0,0.00046693]
[1769419579574,0.0113951,87757.0,87751.0,0.00046693]
[1769419580134,0.01139497,87758.0,87751.0,0.00046693]
[1769419580347,0.0113951,87757.0,87751.0,0.00046693]
[1769419580882,0.0113951,87757.0,87743.0,0.02487545]
[1769419580883,0.01139549,87754.0,87743.0,0.02440964]
[1769419581215,0.01139562,87753.0,87743.0,0.02445636]
[1769419581365,0.01139549,87754.0,87743.0,0.02445636]
[1769419581801,0.01139536,87755.0,87743.0,0.02445636]
[1769419582336,0.27536617,87756.0,87743.0,0.02445636]
[1769419582655,0.01139536,87755.0,87743.0,4.672e-05]
[1769419583110,0.01139549,87754.0,87743.0,4.672e-05]
[1769419583311,0.01139562,87753.0,87743.0,4.672e-05]
[1769419583536,0.01139549,87754.0,87743.0,4.672e-05]
[1769419583678,0.01139536,87755.0,87743.0,4.672e-05]
[1769419583878,0.06837251,87755.0,87743.0,4.672e-05]
[1769419584106,0.01139575,87752.0,87743.0,4.672e-05]
[1769419584454,0.01139549,87754.0,87743.0,4.672e-05]
[1769419584654,0.01139562,87753.0,87743.0,4.672e-05]
[1769419585113,0.01139536,87755.0,87743.0,4.672e-05]
[1769419585313,0.01139523,87756.0,87743.0,4.672e-05]
[1769419585697,0.0113951,87757.0,87743.0,0.02492217]
[1769419587619,0.05697514,87758.0,87743.0,0.02492217]
[1769419587620,0.32094494,87760.0,87743.0,0.02492217]
[1769419587829,0.35646858,87760.0,87743.0,0.02492217]
[1769419588045,0.01139497,87758.0,87743.0,0.02492217]
[1769419588667,0.26397094,87760.0,87743.0,0.02492217]
[1769419588830,0.26397094,87760.0,87744.0,0.02487545]
[1769419589071,0.26397094,87760.0,87745.0,0.02487545]
[1769419589275,0.29379717,87760.0,87745.0,0.02487545]
[1769419589474,0.26397094,87760.0,87745.0,0.02487545]
[1769419590649,0.01139432,87763.0,87745.0,0.68447404]
[1769419590846,0.01139432,87763.0,87746.0,0.02487545]
[1769419591418,0.06836555,87764.0,87746.0,0.02487545]
[1769419591623,0.26397094,87763.0,87746.0,0.02487545]
[1769419591828,0.01139445,87762.0,87746.0,0.02487545]
[1769419592194,0.01139458,87761.0,87746.0,0.02487545]
[1769419592394,0.33659516,87762.0,87746.0,0.02487545]
[1769419592670,0.32520071,87762.0,87746.0,0.02487545]
[1769419592871,0.26397094,87762.0,87746.0,0.02487545]
[1769419593282,0.26397094,87762.0,87747.0,0.02487545]
[1769419596205,0.01139419,87764.0,87747.0,0.02487545]
[1769419596404,0.11436693,87766.0,87750.0,0.68600742]
[1769419596641,0.01139393,87766.0,87752.0,0.02471526]
[1769419597025,0.01139406,87765.0,87752.0,0.02471526]
[1769419598329,0.01239406,87765.0,87752.0,0.02471526]
[1769419599683,0.01139432,87763.0,87752.0,0.02471526]
[1769419599831,0.01139419,87764.0,87752.0,0.02471526]
[1769419600546,0.33233582,87765.0,87752.0,0.02471526]
[1769419600749,0.001,87763.0,87752.0,0.02471526]
[1769419601486,0.275365,87765.0,87752.0,0.02471526]
[1769419601698,0.276365,87765.0,87752.0,0.02471526]
[1769419602363,0.26497094,87765.0,87752.0,0.02471526]
[1769419602563,0.276365,87765.0,87752.0,0.02471526]
[1769419602900,0.275365,87765.0,87752.0,0.02471526]
[1769419603118,0.01139406,87765.0,87752.0,0.02471526]
[1769419603299,0.001,87763.0,87752.0,0.02471526]
[1769419603656,0.01139393,87766.0,87752.0,0.02471526]
[1769419603862,0.11661591,87766.0,87752.0,0.02471526]
[1769419604084,0.001,87765.0,87752.0,0.02471526]
[1769419604494,0.09028195,87767.0,87752.0,0.02471526]
[1769419604915,0.001,87766.0,87752.0,0.02471526]
[1769419606160,0.0113938,87767.0,87752.0,0.02471526]
[1769419606362,0.09028195,87768.0,87754.0,0.02471526]
[1769419606569,0.01139328,87771.0,87756.0,0.02471526]
[1769419606570,0.001,87767.0,87756.0,0.02471526]
[1769419607055,0.09028195,87768.0,87756.0,0.02471526]
[1769419607244,0.10167549,87769.0,87756.0,0.02471526]
[1769419607450,0.05696739,87770.0,87756.0,0.02471526]
[1769419607451,0.09128195,87768.0,87756.0,0.02471526]
[1769419608106,0.09028195,87768.0,87756.0,0.02471526]
[1769419608261,0.09028195,87769.0,87756.0,0.02471526]
[1769419608576,0.09028195,87769.0,87744.0,0.01139679]
[1769419608577,0.09028195,87768.0,87746.0,0.02471526]
[1769419608779,0.09028195,87768.0,87749.0,0.68600742]
[1769419608987,0.09028195,87768.0,87752.0,0.02471526]
[1769419609162,0.27536448,87769.0,87754.0,0.02471526]
[1769419609391,0.06836423,87766.0,87754.0,0.02471526]
[1769419609588,0.01139419,87764.0,87754.0,0.02471526]
[1769419609788,0.27536513,87764.0,87748.0,0.68600742]
[1769419609992,0.01139471,87760.0,87749.0,0.02471526]
[1769419610196,0.01139484,87759.0,87749.0,0.02471526]
[1769419610397,0.01139471,87760.0,87749.0,0.02471526]
[1769419610978,0.06836867,87760.0,87749.0,0.02471526]
[1769419611201,0.06836867,87760.0,87743.0,4.672e-05]
[1769419611202,0.0113951,87757.0,87743.0,4.672e-05]
[1769419611534,0.0113951,87757.0,87743.0,0.02476198]
[1769419611679,0.26397094,87758.0,87743.0,0.02476198]
[1769419611879,0.27536591,87758.0,87744.0,0.02471526]
[1769419613475,0.0113951,87757.0,87745.0,0.01647045]
[1769419613678,0.27536591,87758.0,87745.0,0.01647045]
[1769419613874,0.27536591,87758.0,87745.0,0.02471526]
[1769419614282,0.0113951,87757.0,87745.0,0.02471526]
[1769419615751,0.06836985,87758.0,87746.0,0.02471526]
[1769419616730,0.10477313,87758.0,87746.0,0.02471526]
[1769419617117,0.01139497,87758.0,87746.0,0.02471526]
[1769419618038,0.05697605,87757.0,87746.0,0.02471526]
[1769419618268,0.0113951,87757.0,87746.0,0.02471526]
[1769419619625,0.01139497,87758.0,87746.0,0.02471526]
[1769419620146,0.06836986,87758.0,87746.0,0.02471526]
[1769419620460,0.01139497,87758.0,87746.0,0.02471526]
[1769419620662,0.06836916,87759.0,87746.0,0.02471526]
[1769419620869,0.01139497,87758.0,87746.0,0.02471526]
[1769419621226,0.01139484,87759.0,87746.0,0.02471526]
[1769419621746,0.05697405,87760.0,87747.0,0.02471526]
[1769419622086,0.26397094,87777.0,87748.0,0.01646772]
[1769419622214,0.01139159,87784.0,87762.0,0.02471526]
[1769419622416,0.01139146,87785.0,87765.0,0.68600742]
[1769419622767,0.26397094,87785.0,87768.0,0.02471526]
[1769419623064,0.01139172,87783.0,87769.0,0.02471526]
[1769419623424,0.01139185,87782.0,87769.0,0.02471526]
[1769419623671,0.01139172,87783.0,87769.0,0.02471526]
[1769419623962,0.2753624,87785.0,87771.0,0.02471526]
[1769419623963,0.01139146,87785.0,87771.0,0.02471526]
[1769419624242,0.01139172,87783.0,87773.0,0.02471526]
[1769419624411,0.01139159,87784.0,87773.0,0.02471526]
[1769419624609,0.01139172,87783.0,87773.0,0.02471526]
[1769419625209,0.01185923,87783.0,87773.0,0.02471526]
[1769419626395,0.26397094,87793.0,87772.0,0.68890819]
[1769419626623,0.0296168,87796.0,87775.0,0.02504601]
[1769419626826,0.0113903,87794.0,87779.0,0.02504601]
[1769419626986,0.01139055,87792.0,87781.0,0.02504601]
[1769419627193,0.06834377,87792.0,87781.0,0.02504601]
[1769419627439,0.01139068,87791.0,87781.0,0.02504601]
[1769419628175,0.26397094,87795.0,87781.0,0.02504601]
[1769419628364,0.27536111,87795.0,87781.0,0.02504601]
[1769419628739,0.27536111,87795.0,87772.0,0.00046751]
[1769419628740,0.0002602,87795.0,87780.0,0.68890819]
[1769419628917,0.0002602,87795.0,87783.0,0.02504601]
[1769419629155,0.0002602,87795.0,87784.0,0.02504601]
[1769419629523,0.0002602,87795.0,87783.0,0.68890819]
[1769419629720,0.0002602,87795.0,87785.0,0.68890819]
[1769419629924,0.0002602,87795.0,87775.0,0.01139276]
[1769419629925,0.0001893,87801.0,87788.0,0.02504601]
[1769419630132,0.0001893,87801.0,87775.0,0.01139276]
[1769419630133,0.01138874,87806.0,87791.0,0.68890819]
[1769419630338,0.01138874,87806.0,87780.0,0.27310601]
[1769419630339,0.01138809,87811.0,87795.0,0.68890819]
[1769419630566,0.01138848,87808.0,87798.0,0.02504601]
[1769419631217,0.01138861,87807.0,87798.0,0.02504601]
[1769419631427,0.01138835,87809.0,87798.0,0.02504601]
[1769419631566,0.01138848,87808.0,87798.0,0.02504601]
[1769419631800,0.01138835,87809.0,87798.0,0.02504601]
[1769419632199,0.06832935,87810.0,87798.0,0.02504601]
[1769419632403,0.001,87807.0,87798.0,0.02504601]
[1769419632957,0.05712945,87812.0,87798.0,0.02504601]
[1769419632958,0.0001893,87812.0,87799.0,0.02504601]
[1769419633738,0.0001893,87812.0,87800.0,0.68890819]
[1769419633915,0.0001893,87812.0,87790.0,0.27281756]
[1769419633916,0.0001893,87812.0,87803.0,0.02504601]
[1769419634135,0.0003295,87812.0,87805.0,0.0164919]
[1769419634957,0.0003295,87812.0,87806.0,0.0241874]
[1769419636203,0.0129591,87823.0,87788.0,0.0456]
[1769419636204,0.01138679,87821.0,87808.0,0.0241874]
[1769419636411,0.0001893,87824.0,87812.0,0.0241874]
[1769419636655,0.0001893,87824.0,87815.0,0.68890819]
[1769419636847,0.0113855,87831.0,87818.0,0.0241874]
[1769419637051,0.01138563,87830.0,87818.0,0.0241874]
[1769419637256,0.0634403,87850.0,87818.0,0.0241874]
[1769419637257,0.01138589,87828.0,87818.0,0.0241874]
[1769419638354,0.06831566,87828.0,87818.0,0.0241874]
[1769419638762,0.01138589,87828.0,87818.0,0.0241874]
[1769419639154,0.05692816,87830.0,87818.0,0.0241874]
[1769419639453,0.01138563,87830.0,87818.0,0.0241874]
[1769419639877,0.6689663,87832.0,87818.0,0.0241874]
[1769419640091,0.64258961,87840.0,87821.0,0.66102439]
[1769419640305,0.01138407,87842.0,87824.0,0.02299524]
[1769419640306,0.0113842,87841.0,87824.0,0.02299524]
[1769419640516,0.01138433,87840.0,87826.0,0.66102439]
[1769419640723,0.01138433,87840.0,87827.0,0.02299524]
[1769419640935,0.01138459,87838.0,87822.0,0.02299524]
[1769419641151,0.01138511,87834.0,87822.0,0.02299524]
[1769419641359,0.01138524,87833.0,87822.0,0.02299524]
[1769419641798,0.01138537,87832.0,87822.0,0.02299524]
[1769419642003,0.01138524,87833.0,87822.0,0.02299524]
[1769419642635,0.05692965,87828.0,87822.0,0.02299524]
[1769419642847,0.01138589,87828.0,87822.0,0.02299524]
[1769419643075,0.01138576,87829.0,87822.0,0.02299524]
[1769419643479,0.01138589,87828.0,87822.0,0.02299524]
[1769419643891,0.01138576,87829.0,87822.0,0.02299524]
[1769419644097,0.01138563,87830.0,87822.0,0.02299524]
[1769419645008,0.01138589,87828.0,87822.0,0.02299524]
[1769419645212,0.01138576,87829.0,87822.0,0.02299524]
[1769419645422,0.01138589,87828.0,87822.0,0.02299524]
[1769419645619,0.01138576,87829.0,87822.0,0.02299524]
[1769419645824,0.01138589,87828.0,87822.0,0.02299524]
[1769419646026,0.01138576,87829.0,87822.0,0.02299524]
[1769419646240,0.01138589,87828.0,87822.0,0.02299524]
[1769419646438,0.01138614,87826.0,87822.0,0.02299524]
[1769419646598,0.01138589,87828.0,87822.0,0.02299524]
[1769419646798,0.01138602,87827.0,87822.0,0.02299524]
[1769419647000,0.01138589,87828.0,87822.0,0.02299524]
[1769419647429,0.01138589,87828.0,87813.0,0.02299524]
[1769419647430,0.01138666,87822.0,87813.0,0.02299524]
[1769419647629,0.05693265,87824.0,87813.0,0.02299524]
[1769419647955,0.01138666,87822.0,87813.0,0.02299524]
[1769419648629,0.01138679,87821.0,87813.0,0.02299524]
[1769419648841,0.01138653,87823.0,87813.0,0.02299524]
[1769419649042,0.01138666,87822.0,87813.0,0.02299524]
[1769419649368,0.01138666,87822.0,87794.0,0.0113903]
[1769419649369,0.01138809,87811.0,87792.0,0.02299524]
[1769419649534,0.01138809,87811.0,87790.0,0.04556]
[1769419649535,0.00014018,87811.0,87795.0,0.66102439]
[1769419649720,0.01152827,87811.0,87798.0,0.02299524]
[1769419650279,0.00014018,87811.0,87799.0,0.02299524]
[1769419650630,0.01138874,87806.0,87799.0,0.02299524]
[1769419650845,0.01138874,87806.0,87789.0,0.02299524]
[1769419650846,0.01138887,87805.0,87789.0,0.02299524]
[1769419651036,0.011389,87804.0,87789.0,0.02299524]
[1769419651243,0.011389,87804.0,87793.0,0.06]
[1769419651460,0.01138887,87805.0,87793.0,0.06]
[1769419651749,0.06833308,87806.0,87793.0,0.06]
[1769419651954,0.01138874,87806.0,87793.0,0.06]
[1769419652153,0.01138887,87805.0,87793.0,0.06]
[1769419652495,0.01138874,87806.0,87793.0,0.06]
[1769419652793,0.01138822,87810.0,87795.0,0.02299524]
[1769419653288,0.01138835,87809.0,87795.0,0.02299524]
[1769419653449,0.01138822,87810.0,87795.0,0.02299524]
[1769419653849,0.01138835,87809.0,87795.0,0.02299524]
[1769419654093,0.01138848,87808.0,87795.0,0.02299524]
[1769419654271,0.01138861,87807.0,87795.0,0.02299524]
[1769419654705,0.011389,87804.0,87795.0,0.02299524]
[1769419655697,0.0683343,87804.0,87793.0,0.06]
[1769419655878,0.01138913,87803.0,87793.0,0.06]
[1769419656076,0.0683343,87804.0,87793.0,0.06]
[1769419656279,0.011389,87804.0,87793.0,0.06]
[1769419656522,0.01138913,87803.0,87793.0,0.06]
[1769419657482,0.01138939,87801.0,87793.0,0.06]
[1769419657711,0.0569481,87800.0,87793.0,0.06]
[1769419657923,0.01138965,87799.0,87793.0,0.06]
[1769419658086,0.64929506,87803.0,87793.0,0.06]
[1769419658297,0.01138939,87801.0,87793.0,0.06]
[1769419658616,0.01138952,87800.0,87793.0,0.06]
[1769419658815,0.01138705,87819.0,87801.0,0.69851556]
[1769419658984,0.06832266,87819.0,87805.0,0.02291397]
[1769419659192,0.01625965,87819.0,87803.0,0.02291397]
[1769419659393,0.01625965,87819.0,87805.0,0.69851556]
[1769419659591,0.0276467,87819.0,87806.0,1e-08]
[1769419659821,0.01138718,87818.0,87806.0,1e-08]
[1769419660013,0.0276467,87819.0,87806.0,1e-08]
[1769419660214,0.01138692,87820.0,87806.0,1e-08]
[1769419660422,0.01138692,87820.0,87806.0,0.69851557]
[1769419661252,0.01853741,87819.0,87806.0,0.69851557]
[1769419661395,0.01138679,87821.0,87807.0,0.66440863]
[1769419661602,0.01138653,87823.0,87806.0,0.69851556]
[1769419661932,0.63790593,87830.0,87809.0,0.02291397]
[1769419662128,0.01138589,87828.0,87810.0,0.69851556]
[1769419662329,0.06831613,87827.0,87810.0,0.69851556]
[1769419662572,0.03622191,87826.0,87810.0,0.69851556]
[1769419662746,0.01138576,87829.0,87811.0,0.02291397]
[1769419663078,0.01138576,87829.0,87814.0,0.69851556]
[1769419663390,0.07546524,87831.0,87801.0,0.00014018]
[1769419663391,0.02483577,87834.0,87818.0,0.69851556]
[1769419663841,0.01853741,87839.0,87819.0,0.02291397]
[1769419664058,0.01853741,87839.0,87810.0,0.27281756]
[1769419664059,0.01853741,87840.0,87822.0,0.69851556]
[1769419664273,0.04337318,87840.0,87822.0,0.69851556]
[1769419664516,0.06831108,87834.0,87822.0,0.69851556]
[1769419664728,0.06831108,87834.0,87810.0,0.27281756]
[1769419664729,0.05642703,87834.0,87802.0,0.01138926]
[1769419664939,0.03622127,87831.0,87806.0,0.69851556]
[1769419665152,0.01138563,87830.0,87808.0,0.69851556]
[1769419665362,0.02483577,87828.0,87810.0,0.69851556]
[1769419665805,0.02483577,87826.0,87810.0,0.69851556]
[1769419666036,0.01853741,87825.0,87810.0,0.69851556]
[1769419669276,0.05692928,87829.0,87810.0,0.72142953]
[1769419669943,0.01138589,87828.0,87810.0,0.72142953]
[1769419670153,0.06831558,87828.0,87810.0,0.72142953]
[1769419670358,0.05693035,87827.0,87810.0,0.72142953]
[1769419670560,0.01138614,87826.0,87810.0,0.72142953]
[1769419670760,0.01138602,87827.0,87810.0,0.72142953]
[1769419671606,0.01138614,87826.0,87810.0,0.72142953]
[1769419671805,0.03622191,87826.0,87810.0,0.02291397]
[1769419672671,0.02483577,87826.0,87810.0,0.02291397]
[1769419672869,0.02483577,87826.0,87810.0,0.72142953]
[1769419673092,0.06831565,87828.0,87811.0,0.02291397]
[1769419673292,0.06831565,87828.0,87811.0,0.72142953]
[1769419673719,0.01138589,87828.0,87811.0,0.72142953]
[1769419673912,0.01138563,87830.0,87811.0,0.69851556]
[1769419674116,0.01138563,87830.0,87804.0,0.02291397]
[1769419674117,0.01138576,87829.0,87804.0,0.02291397]
[1769419674395,0.01138589,87828.0,87807.0,0.69851556]
[1769419674580,0.01138589,87828.0,87810.0,0.02291397]
[1769419674748,0.01138589,87828.0,87812.0,0.72142953]
[1769419676252,0.06831501,87829.0,87812.0,0.72142953]
[1769419676471,0.06831501,87829.0,87813.0,0.69851556]
[1769419676838,0.02483577,87831.0,87813.0,0.69851556]
[1769419677275,0.01138576,87829.0,87813.0,0.69851556]
[1769419677625,0.01138563,87830.0,87813.0,0.69851556]
[1769419677927,0.01138563,87830.0,87813.0,0.72142953]
[1769419678633,0.02483577,87831.0,87830.0,1e-08]
[1769419679385,0.08176327,87831.0,87830.0,1e-08]
[1769419680667,0.08276327,87831.0,87830.0,1e-08]
[1769419681874,0.02583577,87831.0,87830.0,1e-08]
[1769419682662,0.08176327,87831.0,87830.0,1e-08]
[1769419682828,0.08276327,87831.0,87830.0,1e-08]
[1769419684086,0.08176327,87831.0,87830.0,1e-08]
[1769419684386,0.08276327,87831.0,87830.0,1e-08]
[1769419684841,0.25135358,87831.0,87830.0,1e-08]
[1769419685572,0.25035358,87831.0,87830.0,1e-08]
[1769419686115,0.25135358,87831.0,87830.0,1e-08]
[1769419686315,0.25035358,87831.0,87830.0,1e-08]
[1769419686695,0.25135358,87831.0,87830.0,1e-08]
[1769419688832,0.25035358,87831.0,87830.0,1e-08]
[1769419688990,0.25135358,87831.0,87830.0,1e-08]
[1769419689412,0.25035358,87831.0,87830.0,1e-08]
[1769419689732,0.25135358,87831.0,87830.0,1e-08]
[1769419690370,0.25035358,87831.0,87830.0,1e-08]
[1769419690671,0.25135358,87831.0,87830.0,1e-08]
[1769419691751,0.25035358,87831.0,87830.0,1e-08]
[1769419692298,0.25135358,87831.0,87830.0,1e-08]
[1769419692649,0.25035358,87831.0,87830.0,1e-08]
[1769419692847,0.25135358,87831.0,87830.0,1e-08]
[1769419693638,0.08276327,87831.0,87830.0,1e-08]
[1769419694985,0.25135358,87831.0,87830.0,1e-08]
[1769419695195,0.08276327,87831.0,87830.0,1e-08]
[1769419695574,0.08176327,87831.0,87830.0,1e-08]
[1769419695777,0.02583577,87831.0,87830.0,1e-08]
[1769419696523,0.02483577,87831.0,87830.0,1e-08]
[1769419696662,0.01138511,87834.0,87830.0,1e-08]
[1769419696873,0.001,87831.0,87815.0,0.02253361]
[1769419697083,0.01138524,87833.0,87816.0,0.68319991]
[1769419697293,0.06831172,87833.0,87817.0,0.6606663]
[1769419697493,0.06831172,87833.0,87818.0,0.68044896]
[1769419697707,0.01138537,87832.0,87819.0,0.01978243]
[1769419697889,0.01138563,87830.0,87818.0,0.6606663]